fUST/lending_fUST_20241229
["ID","MTS","AMOUNT","RATE_DAILY","PERIOD"]
[347034465,1735477841391,-469.17515508,9.52e-05,2]
[347034466,1735477841401,-694.92,9.52e-05,2]
[347034467,1735477841411,-500.0,9.52e-05,2]
[347034468,1735477841420,-500.0,9.52e-05,2]
[347034469,1735477841501,-500.0,9.52e-05,2]
[347034470,1735477841511,-500.0,9.52e-05,2]
[347034471,1735477841520,-500.0,9.52e-05,2]
[347034472,1735477841530,-500.0,9.52e-05,2]
[347034473,1735477841539,-16349.18,9.52e-05,2]
[347034474,1735477841548,-556.36,9.52e-05,2]
[347034475,1735477841557,-500.0,9.52e-05,2]
[347034476,1735477841567,-523.04,9.52e-05,2]
[347034477,1735477841577,-500.0,9.52e-05,2]
[347034478,1735477841587,-177.39411785,9.52e-05,2]
[347034479,1735477841607,-649.50588215,9.52e-05,2]
[347034480,1735477841616,-500.0,9.52e-05,2]
[347034481,1735477841626,-500.0,9.52e-05,2]
[347034482,1735477841635,-500.0,9.52e-05,2]
[347034483,1735477841645,-756.69,9.52e-05,2]
[347034484,1735477841655,-656.55,9.52e-05,2]
[347034485,1735477841664,-501.80294529,9.52e-05,2]
[347034486,1735477841673,-500.0,9.52e-05,2]
[347034487,1735477841682,-500.0,9.52e-05,2]
[347034488,1735477841692,-2177.69,9.52e-05,2]
[347034489,1735477841701,-500.0,9.52e-05,2]
[347034490,1735477841711,-502.41,9.52e-05,2]
[347034491,1735477841720,-500.0,9.52e-05,2]
[347034492,1735477841729,-640.44,9.52e-05,2]
[347034493,1735477841738,-500.0,9.52e-05,2]
[347034494,1735477841748,-500.0,9.52e-05,2]
[347034495,1735477841756,-500.0,9.52e-05,2]
[347034496,1735477841765,-500.0,9.52e-05,2]
[347034497,1735477841775,-500.0,9.52e-05,2]
[347034498,1735477841785,-500.0,9.52e-05,2]
[347034499,1735477841795,-500.0,9.52e-05,2]
[347034500,1735477841805,-645.80862824,9.52e-05,2]
[347034501,1735477841815,-500.0,9.52e-05,2]
[347034502,1735477841826,-500.0,9.52e-05,2]
[347034503,1735477841835,-2967.83,9.521e-05,2]
[347034504,1735477841844,-3193.18,9.521e-05,2]
[347034505,1735477841853,-639.96,9.521e-05,2]
[347034506,1735477841862,-500.0,9.521e-05,2]
[347034507,1735477841872,-1176.00610477,9.521e-05,2]
[347034508,1735477841881,-500.0,9.792e-05,2]
[347034509,1735477841890,-1312.71,9.792e-05,2]
[347034510,1735477841899,-612.1,9.792e-05,2]
[347034511,1735477841908,-500.0,9.793e-05,2]
[347034512,1735477841917,-500.0,9.793e-05,2]
[347034513,1735477841926,-1578.43,9.793e-05,2]
[347034514,1735477841934,-895.47,9.793e-05,2]
[347034515,1735477841943,-645.25,9.793e-05,2]
[347034516,1735477841952,-524.16,9.793e-05,2]
[347034517,1735477841961,-500.0,9.793e-05,2]
[347034518,1735477841970,-500.0,9.793e-05,2]
[347034519,1735477841979,-500.0,9.794e-05,2]
[347034520,1735477841988,-500.0,9.794e-05,2]
[347034521,1735477841997,-500.0,9.794e-05,2]
[347034522,1735477842006,-500.0,9.794e-05,2]
[347034523,1735477842015,-500.0,9.794e-05,2]
[347034524,1735477842024,-500.0,9.794e-05,2]
[347034525,1735477842033,-500.0,9.794e-05,2]
[347034526,1735477842042,-346.34223364,9.794e-05,2]
[347034527,1735477842051,-157.52486788,9.794e-05,2]
[347034528,1735477842060,-500.0,9.794e-05,2]
[347034529,1735477842068,-495.96777724,9.794e-05,2]
[347034530,1735477842078,-500.0,9.794e-05,2]
[347034531,1735477842087,-523.06,9.794e-05,2]
[347034532,1735477842096,-500.0,9.794e-05,2]
[347034533,1735477842105,-500.0,9.794e-05,2]
[347034534,1735477842114,-500.0,9.794e-05,2]
[347034535,1735477842124,-500.0,9.794e-05,2]
[347034536,1735477842133,-500.0,9.794e-05,2]
[347034537,1735477842142,-500.0,9.794e-05,2]
[347034538,1735477842151,-500.0,9.794e-05,2]
[347034539,1735477842160,-500.0,9.794e-05,2]
[347034540,1735477842168,-500.0,9.794e-05,2]
[347034541,1735477842177,-500.0,9.794e-05,2]
[347034542,1735477842186,-500.0,9.794e-05,2]
[347034543,1735477842195,-500.0,9.794e-05,2]
[347034544,1735477842204,-500.0,9.794e-05,2]
[347034545,1735477842214,-506.63,9.794e-05,2]
[347034546,1735477842226,-500.0,9.794e-05,2]
[347034547,1735477842235,-500.0,9.794e-05,2]
[347034548,1735477842244,-500.0,9.794e-05,2]
[347034549,1735477842253,-500.0,9.794e-05,2]
[347034550,1735477842263,-500.0,9.794e-05,2]
[347034551,1735477842272,-500.0,9.794e-05,2]
[347034552,1735477842281,-503.99506813,9.794e-05,2]
[347034553,1735477842291,-500.0,9.794e-05,2]
[347034554,1735477842301,-2967.83,9.794e-05,2]
[347034555,1735477842310,-2967.83,9.794e-05,2]
[347034556,1735477842319,-500.0,9.794e-05,2]
[347034557,1735477842328,-500.0,9.794e-05,2]
[347034558,1735477842337,-500.0,9.794e-05,2]
[347034559,1735477842347,-500.0,9.794e-05,2]
[347034560,1735477842357,-500.0,9.794e-05,2]
[347034561,1735477842366,-500.0,9.794e-05,2]
[347034562,1735477842377,-500.0,9.794e-05,2]
[347034563,1735477842386,-500.0,9.794e-05,2]
[347034564,1735477842395,-500.0,9.794e-05,2]
[347034565,1735477842405,-500.0,9.794e-05,2]
[347034566,1735477842414,-500.0,9.794e-05,2]
[347034567,1735477842423,-500.0,9.794e-05,2]
[347034568,1735477842432,-500.0,9.794e-05,2]
[347034569,1735477842441,-500.0,9.794e-05,2]
[347034570,1735477842450,-500.0,9.794e-05,2]
[347034571,1735477842459,-500.0,9.794e-05,2]
[347034572,1735477842469,-500.0,9.794e-05,2]
[347034573,1735477842479,-500.0,9.794e-05,2]
[347034574,1735477842488,-500.0,9.794e-05,2]
[347034575,1735477842497,-153.35675439,9.794e-05,2]
[347034576,1735477842506,-500.0,9.794e-05,2]
[347034577,1735477842516,-569.96,9.794e-05,2]
[347034578,1735477842525,-500.0,9.794e-05,2]
[347034579,1735477842534,-500.0,9.794e-05,2]
[347034580,1735477842543,-500.0,9.794e-05,2]
[347034581,1735477842552,-500.0,9.794e-05,2]
[347034582,1735477842562,-500.0,9.794e-05,2]
[347034583,1735477842571,-481.26391308,9.794e-05,2]
[347034584,1735477842580,-626.81717075,9.794e-05,2]
[347034585,1735477842589,-500.0,9.794e-05,2]
[347034586,1735477842599,-500.0,9.794e-05,2]
[347034587,1735477842609,-500.0,9.794e-05,2]
[347034588,1735477842618,-500.0,9.794e-05,2]
[347034589,1735477842630,-500.0,9.794e-05,2]
[347034590,1735477842639,-355.34957742,9.794e-05,2]
[347034591,1735477842649,-500.0,9.794e-05,2]
[347034592,1735477842658,-500.0,9.794e-05,2]
[347034593,1735477842668,-694.92,9.794e-05,2]
[347034594,1735477842677,-500.0,9.794e-05,2]
[347034595,1735477842687,-500.0,9.794e-05,2]
[347034596,1735477842696,-500.0,9.794e-05,2]
[347034597,1735477842706,-500.0,9.794e-05,2]
[347034598,1735477842715,-500.0,9.794e-05,2]
[347034599,1735477842726,-500.0,9.794e-05,2]
[347034600,1735477842735,-16349.18,9.794e-05,2]
[347034601,1735477842744,-556.36,9.794e-05,2]
[347034602,1735477842754,-596.20301541,9.794e-05,2]
[347034603,1735477842763,-523.04,9.794e-05,2]
[347034604,1735477842772,-500.0,9.794e-05,2]
[347034605,1735477842781,-826.9,9.794e-05,2]
[347034606,1735477842792,-500.0,9.794e-05,2]
[347034608,1735477842803,-500.0,9.794e-05,2]
[347034609,1735477842812,-500.0,9.794e-05,2]
[347034610,1735477842821,-756.69,9.794e-05,2]
[347034611,1735477842830,-656.55,9.794e-05,2]
[347034612,1735477842840,-500.0,9.794e-05,2]
[347034618,1735477842913,-500.0,9.794e-05,2]
[347034620,1735477842923,-2177.69,9.794e-05,2]
[347034621,1735477842932,-500.0,9.794e-05,2]
[347034622,1735477842942,-502.41,9.794e-05,2]
[347034623,1735477842951,-500.0,9.794e-05,2]
[347034624,1735477842960,-640.44,9.794e-05,2]
[347034625,1735477842969,-500.0,9.794e-05,2]
[347034626,1735477842978,-500.0,9.794e-05,2]
[347034627,1735477842987,-500.0,9.794e-05,2]
[347034628,1735477842995,-500.0,9.794e-05,2]
[347034629,1735477843004,-500.0,9.794e-05,2]
[347034630,1735477843013,-500.0,9.794e-05,2]
[347034631,1735477843022,-500.0,9.794e-05,2]
[347034632,1735477843031,-483.76587734,9.794e-05,2]
[347034633,1735477843040,-2967.83,9.795e-05,2]
[347034634,1735477843049,-3193.18,9.795e-05,2]
[347034635,1735477843058,-639.96,9.795e-05,2]
[347034636,1735477843068,-187.60993535,9.795e-05,2]
[347034637,1735477843077,-501.55569054,9.861e-05,2]
[347034638,1735477843087,-500.0,9.876e-05,2]
[347034639,1735477843096,-1176.00610473,9.9e-05,2]
[347034640,1735477843105,-500.0,0.00010066,2]
[347034642,1735477843115,-1312.71,0.00010066,2]
[347034644,1735477843127,-612.1,0.00010066,2]
[347034645,1735477843136,-500.0,0.00010067,2]
[347034646,1735477843145,-500.0,0.00010067,2]
[347034647,1735477843154,-1578.43,0.00010067,2]
[347034648,1735477843163,-895.47,0.00010067,2]
[347034649,1735477843172,-645.25,0.00010067,2]
[347034650,1735477843182,-524.16,0.00010067,2]
[347034651,1735477843191,-500.0,0.00010067,2]
[347034652,1735477843201,-500.0,0.00010067,2]
[347034653,1735477843211,-500.0,0.00010068,2]
[347034654,1735477843220,-500.0,0.00010068,2]
[347034655,1735477843230,-500.0,0.00010068,2]
[347034656,1735477843240,-500.0,0.00010068,2]
[347034657,1735477843249,-500.0,0.00010068,2]
[347034658,1735477843259,-500.0,0.00010068,2]
[347034659,1735477843268,-500.0,0.00010068,2]
[347034660,1735477843276,-500.0,0.00010068,2]
[347034661,1735477843286,-523.06,0.00010068,2]
[347034662,1735477843295,-500.0,0.00010068,2]
[347034663,1735477843304,-500.0,0.00010068,2]
[347034664,1735477843313,-500.0,0.00010068,2]
[347034665,1735477843322,-523.97956359,0.00010068,2]
[347034666,1735477843332,-500.0,0.00010068,2]
[347034667,1735477843341,-500.0,0.00010068,2]
[347034668,1735477843351,-500.0,0.00010068,2]
[347034669,1735477843360,-500.0,0.00010068,2]
[347034670,1735477843370,-500.0,0.00010068,2]
[347034671,1735477843381,-188.76412642,0.00010068,2]
[347034672,1735477843390,-500.0,0.00010068,2]
[347034673,1735477843400,-500.0,0.00010068,2]
[347034674,1735477843410,-500.0,0.00010068,2]
[347034675,1735477843419,-506.63,0.00010068,2]
[347034676,1735477843430,-407.99852545,0.00010068,2]
[347034677,1735477843439,-500.0,0.00010068,2]
[347034678,1735477843448,-500.0,0.00010068,2]
[347034679,1735477843458,-500.0,0.00010068,2]
[347034680,1735477843467,-500.0,0.00010068,2]
[347034681,1735477843476,-312.10567607,0.00010068,2]
[347034682,1735477843486,-500.0,0.00010068,2]
[347034683,1735477843495,-2967.83,0.00010068,2]
[347034684,1735477843505,-500.0,0.00010068,2]
[347034685,1735477843514,-500.0,0.00010068,2]
[347034686,1735477843523,-500.0,0.00010068,2]
[347034687,1735477843533,-500.0,0.00010068,2]
[347034688,1735477843546,-500.0,0.00010068,2]
[347034689,1735477843562,-527.17150822,0.00010068,2]
[347034690,1735477843576,-500.0,0.00010068,2]
[347034691,1735477843589,-500.0,0.00010068,2]
[347034692,1735477843603,-500.0,0.00010068,2]
[347034693,1735477843618,-500.0,0.00010068,2]
[347034694,1735477843635,-500.0,0.00010068,2]
[347034695,1735477843650,-500.0,0.00010068,2]
[347034696,1735477843666,-500.0,0.00010068,2]
[347034697,1735477843680,-500.0,0.00010068,2]
[347034698,1735477843692,-500.0,0.00010068,2]
[347034699,1735477843708,-500.0,0.00010068,2]
[347034700,1735477843721,-500.0,0.00010068,2]
[347034701,1735477843733,-500.0,0.00010068,2]
[347034702,1735477843747,-500.0,0.00010068,2]
[347034703,1735477843760,-500.0,0.00010068,2]
[347034704,1735477843775,-569.96,0.00010068,2]
[347034705,1735477843790,-427.11041384,0.00010068,2]
[347034706,1735477843805,-500.0,0.00010068,2]
[347034707,1735477843820,-500.0,0.00010068,2]
[347034708,1735477843833,-500.0,0.00010068,2]
[347034709,1735477843844,-500.0,0.00010068,2]
[347034710,1735477843855,-500.0,0.00010068,2]
[347034711,1735477843870,-500.0,0.00010068,2]
[347034712,1735477843885,-500.0,0.00010068,2]
[347034713,1735477843895,-408.91472091,0.00010068,2]
[347034714,1735477843907,-500.0,0.00010068,2]
[347034715,1735477843921,-500.0,0.00010068,2]
[347034716,1735477843932,-500.0,0.00010068,2]
[347034717,1735477843943,-694.92,0.00010068,2]
[347034718,1735477843956,-500.0,0.00010068,2]
[347034719,1735477843968,-500.0,0.00010068,2]
[347034720,1735477843980,-500.0,0.00010068,2]
[347034721,1735477843992,-500.0,0.00010068,2]
[347034722,1735477844003,-16349.18,0.00010068,2]
[347034723,1735477844016,-556.36,0.00010068,2]
[347034724,1735477844028,-523.04,0.00010068,2]
[347034725,1735477844040,-500.0,0.00010068,2]
[347034726,1735477844052,-826.9,0.00010068,2]
[347034727,1735477844065,-500.0,0.00010068,2]
[347034728,1735477844077,-500.0,0.00010068,2]
[347034729,1735477844089,-500.0,0.00010068,2]
[347034730,1735477844100,-756.69,0.00010068,2]
[347034731,1735477844112,-656.55,0.00010068,2]
[347034732,1735477844124,-500.0,0.00010068,2]
[347034733,1735477844136,-500.0,0.00010068,2]
[347034734,1735477844148,-2177.69,0.00010068,2]
[347034735,1735477844160,-502.41,0.00010068,2]
[347034736,1735477844173,-500.0,0.00010068,2]
[347034737,1735477844185,-640.44,0.00010068,2]
[347034738,1735477844198,-500.0,0.00010068,2]
[347034739,1735477844210,-284.21704399,0.00010068,2]
[347034740,1735477844226,-500.0,0.00010068,2]
[347034741,1735477844237,-500.0,0.00010068,2]
[347034742,1735477844250,-572.73274101,0.00010068,2]
[347034743,1735477844261,-500.0,0.00010068,2]
[347034744,1735477844270,-500.0,0.00010068,2]
[347034745,1735477844279,-2967.83,0.00010069,2]
[347034746,1735477844290,-3193.18,0.00010069,2]
[347034747,1735477844302,-639.96,0.00010069,2]
[347034748,1735477844313,-420.0,0.0001017,2]
[347034749,1735477844322,-7640.77159283,0.00010244,2]
[347034750,1735477844331,-500.0,0.0001034,2]
[347034751,1735477844340,-1312.71,0.0001034,2]
[347034752,1735477844350,-612.1,0.0001034,2]
[347034753,1735477844359,-500.0,0.00010341,2]
[347034754,1735477844481,-500.0,0.00010341,2]
[347034755,1735477844497,-1578.43,0.00010341,2]
[347034756,1735477844506,-895.47,0.00010341,2]
[347034757,1735477844515,-645.25,0.00010341,2]
[347034758,1735477844525,-524.16,0.00010341,2]
[347034759,1735477844534,-500.0,0.00010341,2]
[347034760,1735477844544,-500.0,0.00010341,2]
[347034761,1735477844553,-500.0,0.00010342,2]
[347034762,1735477844563,-500.0,0.00010342,2]
[347034763,1735477844572,-500.0,0.00010342,2]
[347034764,1735477844582,-500.0,0.00010342,2]
[347034765,1735477844593,-500.0,0.00010342,2]
[347034766,1735477844604,-500.0,0.00010342,2]
[347034767,1735477844613,-500.0,0.00010342,2]
[347034768,1735477844623,-500.0,0.00010342,2]
[347034769,1735477844633,-523.06,0.00010342,2]
[347034770,1735477844642,-500.0,0.00010342,2]
[347034771,1735477844651,-500.0,0.00010342,2]
[347034772,1735477844660,-195.95552174,0.00010342,2]
[347034773,1735477844670,-290.71,0.00010342,2]
[347034774,1735477844680,-500.0,0.00010342,2]
[347034775,1735477844691,-500.0,0.00010342,2]
[347034776,1735477844701,-500.0,0.00010342,2]
[347034777,1735477844710,-500.0,0.00010342,2]
[347034778,1735477844720,-500.0,0.00010342,2]
[347034779,1735477844730,-500.0,0.00010342,2]
[347034780,1735477844739,-500.0,0.00010342,2]
[347034781,1735477844748,-506.63,0.00010342,2]
[347034782,1735477844759,-575.43451119,0.00010342,2]
[347034783,1735477844768,-500.0,0.00010342,2]
[347034784,1735477844777,-500.0,0.00010342,2]
[347034785,1735477844787,-500.005427,0.00010342,2]
[347034786,1735477844796,-500.0,0.00010342,2]
[347034787,1735477844805,-500.0,0.00010342,2]
[347034788,1735477844815,-2967.83,0.00010342,2]
[347034789,1735477844824,-500.0,0.00010342,2]
[347034790,1735477844833,-524.99244873,0.00010342,2]
[347034791,1735477844842,-500.0,0.00010342,2]
[347034792,1735477844851,-500.0,0.00010342,2]
[347034793,1735477844861,-500.0,0.00010342,2]
[347034794,1735477844869,-500.0,0.00010342,2]
[347034795,1735477844879,-500.0,0.00010342,2]
[347034796,1735477844888,-500.0,0.00010342,2]
[347034797,1735477844898,-500.0,0.00010342,2]
[347034798,1735477844907,-500.0,0.00010342,2]
[347034799,1735477844916,-418.43,0.00010342,2]
[347034800,1735477844925,-500.0,0.00010342,2]
[347034801,1735477844934,-500.0,0.00010342,2]
[347034802,1735477844943,-508.00565047,0.00010342,2]
[347034803,1735477844952,-500.0,0.00010342,2]
[347034804,1735477844961,-500.0,0.00010342,2]
[347034805,1735477844970,-500.0,0.00010342,2]
[347034806,1735477844979,-569.96,0.00010342,2]
[347034807,1735477844989,-500.0,0.00010342,2]
[347034808,1735477844998,-500.0,0.00010342,2]
[347034809,1735477845007,-511.73,0.00010342,2]
[347034810,1735477845016,-500.0,0.00010342,2]
[347034811,1735477845025,-500.0,0.00010342,2]
[347034812,1735477845034,-500.0,0.00010342,2]
[347034813,1735477845042,-500.0,0.00010342,2]
[347034814,1735477845052,-500.0,0.00010342,2]
[347034815,1735477845061,-500.0,0.00010342,2]
[347034816,1735477845070,-694.92,0.00010342,2]
[347034817,1735477845079,-500.0,0.00010342,2]
[347034818,1735477845088,-500.0,0.00010342,2]
[347034819,1735477845097,-500.0,0.00010342,2]
[347034820,1735477845106,-500.0,0.00010342,2]
[347034821,1735477845115,-16349.18,0.00010342,2]
[347034822,1735477845124,-556.36,0.00010342,2]
[347034823,1735477845133,-523.04,0.00010342,2]
[347034824,1735477845142,-157.26,0.00010342,2]
[347034825,1735477845152,-826.9,0.00010342,2]
[347034826,1735477845161,-500.0,0.00010342,2]
[347034827,1735477845169,-500.0,0.00010342,2]
[347034828,1735477845179,-500.0,0.00010342,2]
[347034829,1735477845188,-756.69,0.00010342,2]
[347034830,1735477845197,-656.55,0.00010342,2]
[347034831,1735477845206,-500.0,0.00010342,2]
[347034832,1735477845216,-535.3919373,0.00010342,2]
[347034833,1735477845225,-2177.69,0.00010342,2]
[347034834,1735477845234,-502.41,0.00010342,2]
[347034835,1735477845244,-500.0,0.00010342,2]
[347034836,1735477845253,-640.44,0.00010342,2]
[347034837,1735477845262,-500.0,0.00010342,2]
[347034838,1735477845271,-500.0,0.00010342,2]
[347034839,1735477845281,-500.0,0.00010342,2]
[347034840,1735477845290,-500.0,0.00010342,2]
[347034841,1735477845299,-500.0,0.00010342,2]
[347034842,1735477845308,-2967.83,0.00010343,2]
[347034843,1735477845317,-3193.18,0.00010343,2]
[347034844,1735477845326,-639.96,0.00010343,2]
[347034845,1735477845335,-250.0,0.00010411,2]
[347034846,1735477845344,-500.0,0.00010614,2]
[347034847,1735477845353,-1312.71,0.00010614,2]
[347034848,1735477845362,-612.1,0.00010614,2]
[347034849,1735477845371,-500.0,0.00010615,2]
[347034850,1735477845381,-500.0,0.00010615,2]
[347034851,1735477845390,-1578.43,0.00010615,2]
[347034852,1735477845399,-895.47,0.00010615,2]
[347034853,1735477845408,-645.25,0.00010615,2]
[347034854,1735477845417,-524.16,0.00010615,2]
[347034855,1735477845426,-500.0,0.00010615,2]
[347034856,1735477845435,-500.0,0.00010615,2]
[347034857,1735477845444,-500.0,0.00010616,2]
[347034858,1735477845453,-500.0,0.00010616,2]
[347034859,1735477845463,-500.0,0.00010616,2]
[347034860,1735477845472,-500.0,0.00010616,2]
[347034861,1735477845482,-500.0,0.00010616,2]
[347034862,1735477845491,-500.0,0.00010616,2]
[347034863,1735477845500,-500.0,0.00010616,2]
[347034864,1735477845509,-500.0,0.00010616,2]
[347034865,1735477845518,-523.06,0.00010616,2]
[347034866,1735477845527,-362.26000369,0.00010616,2]
[347034867,1735477845536,-500.0,0.00010616,2]
[347034868,1735477845546,-500.0,0.00010616,2]
[347034869,1735477845555,-500.0,0.00010616,2]
[347034870,1735477845564,-500.0,0.00010616,2]
[347034871,1735477845573,-500.0,0.00010616,2]
[347034872,1735477845582,-500.0,0.00010616,2]
[347034873,1735477845591,-500.0,0.00010616,2]
[347034874,1735477845600,-596.83,0.00010616,2]
[347034875,1735477845610,-506.63,0.00010616,2]
[347034876,1735477845619,-500.0,0.00010616,2]
[347034877,1735477845629,-500.0,0.00010616,2]
[347034878,1735477845639,-500.0,0.00010616,2]
[347034879,1735477845647,-500.0,0.00010616,2]
[347034880,1735477845656,-2967.83,0.00010616,2]
[347034881,1735477845666,-500.0,0.00010616,2]
[347034882,1735477845675,-500.0,0.00010616,2]
[347034883,1735477845684,-500.0,0.00010616,2]
[347034884,1735477845693,-500.0,0.00010616,2]
[347034885,1735477845702,-500.0,0.00010616,2]
[347034886,1735477845711,-500.0,0.00010616,2]
[347034887,1735477845720,-500.0,0.00010616,2]
[347034888,1735477845730,-500.0,0.00010616,2]
[347034889,1735477845739,-500.0,0.00010616,2]
[347034891,1735477845748,-500.0,0.00010616,2]
[347034893,1735477845757,-500.0,0.00010616,2]
[347034895,1735477845766,-500.0,0.00010616,2]
[347034897,1735477845775,-500.0,0.00010616,2]
[347034899,1735477845784,-500.0,0.00010616,2]
[347034901,1735477845795,-569.96,0.00010616,2]
[347034903,1735477845804,-500.0,0.00010616,2]
[347034905,1735477845815,-500.0,0.00010616,2]
[347034907,1735477845825,-500.0,0.00010616,2]
[347034908,1735477845834,-500.0,0.00010616,2]
[347034909,1735477845843,-500.0,0.00010616,2]
[347034910,1735477845853,-500.0,0.00010616,2]
[347034911,1735477845864,-500.0,0.00010616,2]
[347034912,1735477845874,-500.0,0.00010616,2]
[347034913,1735477845883,-694.92,0.00010616,2]
[347034914,1735477845892,-500.0,0.00010616,2]
[347034915,1735477845902,-500.0,0.00010616,2]
[347034916,1735477845911,-500.0,0.00010616,2]
[347034917,1735477845920,-500.0,0.00010616,2]
[347034918,1735477845930,-16349.18,0.00010616,2]
[347034919,1735477845939,-556.36,0.00010616,2]
[347034920,1735477845948,-523.04,0.00010616,2]
[347034921,1735477845957,-826.9,0.00010616,2]
[347034922,1735477845967,-500.0,0.00010616,2]
[347034923,1735477845976,-500.0,0.00010616,2]
[347034924,1735477845985,-500.0,0.00010616,2]
[347034925,1735477845995,-756.69,0.00010616,2]
[347034926,1735477846004,-656.55,0.00010616,2]
[347034927,1735477846013,-500.0,0.00010616,2]
[347034928,1735477846022,-2177.69,0.00010616,2]
[347034929,1735477846032,-502.41,0.00010616,2]
[347034930,1735477846041,-500.0,0.00010616,2]
[347034931,1735477846051,-640.44,0.00010616,2]
[347034932,1735477846060,-500.0,0.00010616,2]
[347034933,1735477846069,-500.0,0.00010616,2]
[347034934,1735477846079,-500.0,0.00010616,2]
[347034935,1735477846090,-500.0,0.00010616,2]
[347034936,1735477846100,-500.0,0.00010616,2]
[347034937,1735477846110,-3193.18,0.00010617,2]
[347034938,1735477846119,-639.96,0.00010617,2]
[347034939,1735477846129,-500.0,0.00010888,2]
[347034940,1735477846139,-1312.71,0.00010888,2]
[347034941,1735477846148,-612.1,0.00010888,2]
[347034942,1735477846157,-500.0,0.00010889,2]
[347034943,1735477846166,-500.0,0.00010889,2]
[347034945,1735477846175,-1578.43,0.00010889,2]
[347034947,1735477846184,-895.47,0.00010889,2]
[347034949,1735477846194,-645.25,0.00010889,2]
[347034951,1735477846203,-524.16,0.00010889,2]
[347034953,1735477846213,-500.0,0.00010889,2]
[347034955,1735477846225,-500.0,0.00010889,2]
[347034957,1735477846235,-500.0,0.0001089,2]
[347034959,1735477846245,-500.0,0.0001089,2]
[347034961,1735477846254,-500.0,0.0001089,2]
[347034963,1735477846265,-500.0,0.0001089,2]
[347034965,1735477846275,-526.46437524,0.0001089,2]
[347034967,1735477846284,-500.0,0.0001089,2]
[347034969,1735477846295,-500.0,0.0001089,2]
[347034971,1735477846305,-523.06,0.0001089,2]
[347034973,1735477846314,-500.0,0.0001089,2]
[347034975,1735477846323,-500.0,0.0001089,2]
[347034977,1735477846333,-500.0,0.0001089,2]
[347034979,1735477846342,-500.0,0.0001089,2]
[347034981,1735477846352,-500.0,0.0001089,2]
[347034984,1735477846362,-500.0,0.0001089,2]
[347034986,1735477846371,-500.0,0.0001089,2]
[347034988,1735477846381,-506.63,0.0001089,2]
[347034990,1735477846390,-500.0,0.0001089,2]
[347034992,1735477846400,-500.0,0.0001089,2]
[347034994,1735477846410,-500.0,0.0001089,2]
[347034996,1735477846419,-500.0,0.0001089,2]
[347034998,1735477846429,-2967.83,0.0001089,2]
[347035000,1735477846438,-2967.83,0.0001089,2]
[347035002,1735477846448,-500.0,0.0001089,2]
[347035004,1735477846457,-500.0,0.0001089,2]
[347035006,1735477846466,-500.0,0.0001089,2]
[347035008,1735477846476,-500.0,0.0001089,2]
[347035010,1735477846485,-500.0,0.0001089,2]
[347035012,1735477846495,-500.0,0.0001089,2]
[347035014,1735477846505,-500.0,0.0001089,2]
[347035016,1735477846514,-500.0,0.0001089,2]
[347035018,1735477846524,-500.0,0.0001089,2]
[347035020,1735477846533,-500.0,0.0001089,2]
[347035022,1735477846543,-500.0,0.0001089,2]